[Event "Early-Titled-Tuesday-Blitz-March-12-2024"]
[Site "Chess.com"]
[Date "2024.03.12"]
[Round "3"]
[White "Kirill_Klukin"]
[Black "el008"]
[Result "1-0"]
[WhiteElo "2817"]
[BlackElo "2524"]
[TimeControl "180+1"]
[EndTime "8:24:52 PDT"]
[Termination "Kirill_Klukin won by resignation"]

1. d4 {[%clk 0:03:00.9]} 1... b6 {[%clk 0:02:59.5]} 2. Nf3 {[%clk 0:02:59.8]}
2... Bb7 {[%clk 0:03:00.4]} 3. e3 {[%clk 0:03:00.6]} 3... Nf6 {[%clk 0:02:58.7]}
4. Bd3 {[%clk 0:03:01]} 4... g6 {[%clk 0:02:58.2]} 5. b3 {[%clk 0:03:00.5]} 5...
Bg7 {[%clk 0:02:58.6]} 6. Bb2 {[%clk 0:03:01.2]} 6... O-O {[%clk 0:02:59.3]} 7.
O-O {[%clk 0:03:01.8]} 7... Ne4 {[%clk 0:02:58.1]} 8. c4 {[%clk 0:02:58.8]} 8...
d6 {[%clk 0:02:56.7]} 9. Nbd2 {[%clk 0:02:58.3]} 9... Nxd2 {[%clk 0:02:53.6]}
10. Nxd2 {[%clk 0:02:58.6]} 10... Nd7 {[%clk 0:02:52.6]} 11. Qc2 {[%clk
0:02:56.1]} 11... e5 {[%clk 0:02:50.6]} 12. Be4 {[%clk 0:02:52.7]} 12... Bxe4
{[%clk 0:02:49.4]} 13. Qxe4 {[%clk 0:02:45.3]} 13... exd4 {[%clk 0:02:40.8]} 14.
Bxd4 {[%clk 0:02:45.2]} 14... Re8 {[%clk 0:02:39.3]} 15. Qd3 {[%clk 0:02:43]}
15... Nc5 {[%clk 0:02:38.1]} 16. Qc3 {[%clk 0:02:40.2]} 16... Bxd4 {[%clk
0:02:37]} 17. Qxd4 {[%clk 0:02:41.1]} 17... a5 {[%clk 0:02:33]} 18. Rad1 {[%clk
0:02:39.8]} 18... Qg5 {[%clk 0:02:29.1]} 19. Nf3 {[%clk 0:02:39.8]} 19... Qf5
{[%clk 0:02:28]} 20. Qd2 {[%clk 0:02:35.1]} 20... h5 {[%clk 0:02:27.2]} 21. Nd4
{[%clk 0:02:34.8]} 21... Qf6 {[%clk 0:02:27.1]} 22. h3 {[%clk 0:02:33.8]} 22...
h4 {[%clk 0:02:27.2]} 23. Qc2 {[%clk 0:02:32.4]} 23... Ne4 {[%clk 0:02:20.1]}
24. Nb5 {[%clk 0:02:30.6]} 24... Rac8 {[%clk 0:02:19.2]} 25. Rd4 {[%clk
0:02:30.6]} 25... Qf5 {[%clk 0:02:16.3]} 26. Rfd1 {[%clk 0:02:24.4]} 26... Re5
{[%clk 0:01:57.9]} 27. Na7 {[%clk 0:02:18]} 27... Rce8 {[%clk 0:01:57.1]} 28.
Nc6 {[%clk 0:02:16.2]} 28... R5e6 {[%clk 0:01:56]} 29. Rd5 {[%clk 0:02:13.2]}
29... Qf6 {[%clk 0:01:55.7]} 30. Nd4 {[%clk 0:02:12.4]} 30... Re5 {[%clk
0:01:52.6]} 31. Nf3 {[%clk 0:02:11.9]} 31... Rxd5 {[%clk 0:01:51.2]} 32. cxd5
{[%clk 0:02:12]} 32... Qc3 {[%clk 0:01:46.5]} 33. Qb1 {[%clk 0:01:59.1]} 33...
Qf6 {[%clk 0:01:45.2]} 34. Rc1 {[%clk 0:01:54.6]} 34... Nc3 {[%clk 0:01:44.3]}
35. Qc2 {[%clk 0:01:53.9]} 35... Nxd5 {[%clk 0:01:43.8]} 36. Qc6 {[%clk
0:01:50.6]} 36... Ne7 {[%clk 0:01:38.4]} 37. Qxe8+ {[%clk 0:01:50.4]} 1-0

[Event "Early-Titled-Tuesday-Blitz-March-12-2024"]
[Site "Chess.com"]
[Date "2024.03.12"]
[Round "3"]
[White "stollenmonster"]
[Black "Real_taiatai"]
[Result "1-0"]
[WhiteElo "2872"]
[BlackElo "2538"]
[TimeControl "180+1"]
[EndTime "8:25:11 PDT"]
[Termination "stollenmonster won by checkmate"]

1. e4 {[%clk 0:03:00.9]} 1... e5 {[%clk 0:03:00.1]} 2. Nc3 {[%clk 0:03:00.4]}
2... d6 {[%clk 0:03:00.4]} 3. g3 {[%clk 0:03:01.3]} 3... Nd7 {[%clk 0:03:00]} 4.
Bg2 {[%clk 0:03:01.6]} 4... g6 {[%clk 0:03:00.2]} 5. Nge2 {[%clk 0:03:02.2]}
5... Bg7 {[%clk 0:03:00.8]} 6. d3 {[%clk 0:03:03.1]} 6... Ne7 {[%clk 0:03:01.3]}
7. h3 {[%clk 0:03:04]} 7... O-O {[%clk 0:03:01.8]} 8. O-O {[%clk 0:03:04.6]}
8... f5 {[%clk 0:03:02.3]} 9. Be3 {[%clk 0:03:01.9]} 9... Nf6 {[%clk 0:03:02.2]}
10. f4 {[%clk 0:03:00.4]} 10... fxe4 {[%clk 0:03:01.7]} 11. Nxe4 {[%clk
0:02:58.9]} 11... Nxe4 {[%clk 0:03:00.9]} 12. dxe4 {[%clk 0:02:59.8]} 12... Nc6
{[%clk 0:02:58.8]} 13. c3 {[%clk 0:02:59.6]} 13... Be6 {[%clk 0:02:57.7]} 14.
Qd3 {[%clk 0:02:59.2]} 14... Qd7 {[%clk 0:02:57.1]} 15. Kh2 {[%clk 0:02:56.8]}
15... Kh8 {[%clk 0:02:50]} 16. b3 {[%clk 0:02:55.8]} 16... a5 {[%clk 0:02:48.1]}
17. Rad1 {[%clk 0:02:53.6]} 17... a4 {[%clk 0:02:46.8]} 18. c4 {[%clk
0:02:53.2]} 18... b6 {[%clk 0:02:09.8]} 19. f5 {[%clk 0:02:38.7]} 19... Bg8
{[%clk 0:01:59]} 20. g4 {[%clk 0:02:36.6]} 20... gxf5 {[%clk 0:01:41.3]} 21.
exf5 {[%clk 0:02:34.3]} 21... axb3 {[%clk 0:01:25.3]} 22. axb3 {[%clk
0:02:33.1]} 22... Ra3 {[%clk 0:01:18.9]} 23. g5 {[%clk 0:02:23]} 23... e4 {[%clk
0:01:17]} 24. Qxe4 {[%clk 0:02:15.8]} 24... Be5+ {[%clk 0:01:16.4]} 25. Bf4
{[%clk 0:02:12.7]} 25... Bxf4+ {[%clk 0:00:52.3]} 26. Nxf4 {[%clk 0:02:13.1]}
26... Ne5 {[%clk 0:00:52.1]} 27. Qxe5+ {[%clk 0:02:06.5]} 27... dxe5 {[%clk
0:00:52.1]} 28. Rxd7 {[%clk 0:02:07.2]} 28... exf4 {[%clk 0:00:52.7]} 29. Rxf4
{[%clk 0:02:07.5]} 29... Rxb3 {[%clk 0:00:52.5]} 30. g6 {[%clk 0:02:08.1]} 30...
hxg6 {[%clk 0:00:52]} 31. Rh4+ {[%clk 0:02:07.8]} 31... Bh7 {[%clk 0:00:51.9]}
32. Rhxh7+ {[%clk 0:02:07.9]} 32... Kg8 {[%clk 0:00:52.7]} 33. Rdg7# {[%clk
0:02:08.6]} 1-0

[Event "Early-Titled-Tuesday-Blitz-March-12-2024"]
[Site "Chess.com"]
[Date "2024.03.12"]
[Round "3"]
[White "toniv1"]
[Black "awesomevishesh"]
[Result "0-1"]
[WhiteElo "2331"]
[BlackElo "2639"]
[TimeControl "180+1"]
[EndTime "8:25:39 PDT"]
[Termination "awesomevishesh won by resignation"]

1. g3 {[%clk 0:02:52.3]} 1... Nf6 {[%clk 0:02:59.3]} 2. Bg2 {[%clk 0:02:52.5]}
2... g6 {[%clk 0:02:59.6]} 3. Nf3 {[%clk 0:02:52.7]} 3... Bg7 {[%clk 0:02:59.6]}
4. d4 {[%clk 0:02:52.3]} 4... O-O {[%clk 0:02:59.4]} 5. O-O {[%clk 0:02:52.9]}
5... d6 {[%clk 0:02:59.4]} 6. c4 {[%clk 0:02:53.5]} 6... Nbd7 {[%clk 0:02:58.3]}
7. Nc3 {[%clk 0:02:53.3]} 7... e5 {[%clk 0:02:58.7]} 8. Qc2 {[%clk 0:02:53.9]}
8... exd4 {[%clk 0:02:54.5]} 9. Nxd4 {[%clk 0:02:54.8]} 9... Nb6 {[%clk
0:02:54.5]} 10. b3 {[%clk 0:02:46.4]} 10... c5 {[%clk 0:02:48.5]} 11. Nf3 {[%clk
0:02:33.5]} 11... Bf5 {[%clk 0:02:45.7]} 12. Qd1 {[%clk 0:02:08.4]} 12... d5
{[%clk 0:02:37]} 13. Bb2 {[%clk 0:01:39.8]} 13... d4 {[%clk 0:02:36.1]} 14. Nb1
{[%clk 0:01:38.7]} 14... Re8 {[%clk 0:02:31.5]} 15. Re1 {[%clk 0:01:38.3]} 15...
Ne4 {[%clk 0:02:28.2]} 16. Qc1 {[%clk 0:01:04.6]} 16... Qe7 {[%clk 0:02:22.9]}
17. Nfd2 {[%clk 0:00:35.4]} 17... Nxf2 {[%clk 0:01:50.8]} 18. Kxf2 {[%clk
0:00:31.7]} 18... Qe3+ {[%clk 0:01:50.3]} 19. Kf1 {[%clk 0:00:32]} 19... d3
{[%clk 0:01:50.2]} 20. Bf3 {[%clk 0:00:22.1]} 20... Bh3+ {[%clk 0:01:48.6]} 0-1

[Event "Early-Titled-Tuesday-Blitz-March-12-2024"]
[Site "Chess.com"]
[Date "2024.03.12"]
[Round "3"]
[White "Fighterman91"]
[Black "VladimirKramnik"]
[Result "0-1"]
[WhiteElo "2768"]
[BlackElo "2999"]
[TimeControl "180+1"]
[EndTime "8:26:08 PDT"]
[Termination "VladimirKramnik won by checkmate"]

1. e4 {[%clk 0:03:00.9]} 1... e6 {[%clk 0:02:59.8]} 2. d4 {[%clk 0:03:00.5]}
2... d5 {[%clk 0:03:00.3]} 3. Nc3 {[%clk 0:03:01.2]} 3... Nf6 {[%clk 0:02:59.6]}
4. e5 {[%clk 0:03:00.9]} 4... Nfd7 {[%clk 0:02:59.2]} 5. f4 {[%clk 0:03:01.4]}
5... c5 {[%clk 0:02:59.9]} 6. Nf3 {[%clk 0:03:02]} 6... Nc6 {[%clk 0:03:00.3]}
7. Be3 {[%clk 0:03:02.4]} 7... Be7 {[%clk 0:02:58.8]} 8. a3 {[%clk 0:02:51.3]}
8... O-O {[%clk 0:02:49.2]} 9. dxc5 {[%clk 0:02:51.3]} 9... Nxc5 {[%clk
0:02:43.7]} 10. b4 {[%clk 0:02:49]} 10... Ne4 {[%clk 0:02:23.7]} 11. Nxe4 {[%clk
0:02:39.2]} 11... dxe4 {[%clk 0:02:24.2]} 12. Qxd8 {[%clk 0:02:25.7]} 12... Rxd8
{[%clk 0:02:23.1]} 13. Nd2 {[%clk 0:02:25.7]} 13... a5 {[%clk 0:02:08.6]} 14. b5
{[%clk 0:02:16]} 14... Nd4 {[%clk 0:02:08.4]} 15. Bxd4 {[%clk 0:01:17.8]} 15...
Rxd4 {[%clk 0:02:07.7]} 16. c3 {[%clk 0:01:17.1]} 16... Rd7 {[%clk 0:02:08.2]}
17. Nxe4 {[%clk 0:01:11.4]} 17... b6 {[%clk 0:02:08.3]} 18. Be2 {[%clk
0:00:21.5]} 18... Bb7 {[%clk 0:02:08.2]} 19. Bf3 {[%clk 0:00:22.1]} 19... Rc8
{[%clk 0:02:08.1]} 20. O-O {[%clk 0:00:14.4]} 20... Bxe4 {[%clk 0:01:58.8]} 21.
Bxe4 {[%clk 0:00:14.7]} 21... Rxc3 {[%clk 0:01:59.1]} 22. a4 {[%clk 0:00:09]}
22... g6 {[%clk 0:01:57.8]} 23. Rfc1 {[%clk 0:00:04.8]} 23... Rxc1+ {[%clk
0:01:51.2]} 24. Rxc1 {[%clk 0:00:04.7]} 24... Rd4 {[%clk 0:01:51.9]} 25. Bf3
{[%clk 0:00:02.5]} 25... Bc5 {[%clk 0:01:47.9]} 26. Ra1 {[%clk 0:00:01.8]} 26...
Rd1# {[%clk 0:01:47]} 0-1

[Event "Early-Titled-Tuesday-Blitz-March-12-2024"]
[Site "Chess.com"]
[Date "2024.03.12"]
[Round "3"]
[White "Alex_Banzea"]
[Black "sansanathalia"]
[Result "1-0"]
[WhiteElo "2629"]
[BlackElo "2349"]
[TimeControl "180+1"]
[EndTime "8:26:11 PDT"]
[Termination "Alex_Banzea won by checkmate"]

1. d4 {[%clk 0:03:00.9]} 1... Nf6 {[%clk 0:02:57.5]} 2. Nc3 {[%clk 0:03:01.3]}
2... d5 {[%clk 0:02:56.4]} 3. Bf4 {[%clk 0:02:46.9]} 3... e6 {[%clk 0:02:50.2]}
4. e3 {[%clk 0:02:46.6]} 4... Be7 {[%clk 0:02:48.7]} 5. Bd3 {[%clk 0:02:46.1]}
5... O-O {[%clk 0:02:42.2]} 6. Nf3 {[%clk 0:02:46.7]} 6... b6 {[%clk 0:02:37.3]}
7. O-O {[%clk 0:02:43.4]} 7... Bb7 {[%clk 0:02:33.7]} 8. Ne2 {[%clk 0:02:20.5]}
8... Nbd7 {[%clk 0:02:27.9]} 9. Ng3 {[%clk 0:02:17.6]} 9... c5 {[%clk
0:02:24.3]} 10. c3 {[%clk 0:02:17.7]} 10... Ne4 {[%clk 0:02:20.3]} 11. h4 {[%clk
0:01:43.9]} 11... f5 {[%clk 0:01:36.9]} 12. h5 {[%clk 0:01:39.5]} 12... Bf6
{[%clk 0:01:13.4]} 13. Bb5 {[%clk 0:01:38.7]} 13... a6 {[%clk 0:00:39.6]} 14.
Bxd7 {[%clk 0:01:38.4]} 14... Qxd7 {[%clk 0:00:38.8]} 15. Ne5 {[%clk 0:01:39.3]}
15... Bxe5 {[%clk 0:00:38.3]} 16. Bxe5 {[%clk 0:01:40.2]} 16... Rae8 {[%clk
0:00:32.1]} 17. Nxe4 {[%clk 0:01:38.2]} 17... fxe4 {[%clk 0:00:28]} 18. f4
{[%clk 0:01:38.4]} 18... exf3 {[%clk 0:00:23.6]} 19. Rxf3 {[%clk 0:01:38.7]}
19... Rxf3 {[%clk 0:00:23.4]} 20. Qxf3 {[%clk 0:01:39.6]} 20... Rf8 {[%clk
0:00:23.6]} 21. Qg4 {[%clk 0:01:38.9]} 21... Qf7 {[%clk 0:00:20.6]} 22. Kh2
{[%clk 0:01:38.9]} 22... g6 {[%clk 0:00:14.6]} 23. Rf1 {[%clk 0:01:29.8]} 23...
Qxf1 {[%clk 0:00:11.1]} 24. hxg6 {[%clk 0:01:30.3]} 24... Qf5 {[%clk 0:00:10.4]}
25. gxh7+ {[%clk 0:01:30.9]} 25... Kxh7 {[%clk 0:00:09.3]} 26. Qg7# {[%clk
0:01:30.9]} 1-0

[Event "Early-Titled-Tuesday-Blitz-March-12-2024"]
[Site "Chess.com"]
[Date "2024.03.12"]
[Round "3"]
[White "SharapovEvgeny"]
[Black "Roedor"]
[Result "1/2-1/2"]
[WhiteElo "2520"]
[BlackElo "2279"]
[TimeControl "180+1"]
[EndTime "8:26:15 PDT"]
[Termination "Game drawn by repetition"]

1. e4 {[%clk 0:02:59.9]} 1... e5 {[%clk 0:02:56.9]} 2. Nf3 {[%clk 0:02:59.5]}
2... Nc6 {[%clk 0:02:56.6]} 3. Bb5 {[%clk 0:02:59.5]} 3... Nf6 {[%clk
0:02:56.2]} 4. d3 {[%clk 0:02:59.4]} 4... Bc5 {[%clk 0:02:55.7]} 5. O-O {[%clk
0:02:58.9]} 5... Nd4 {[%clk 0:02:55.5]} 6. Nxd4 {[%clk 0:02:58.7]} 6... Bxd4
{[%clk 0:02:56.4]} 7. c3 {[%clk 0:02:59]} 7... Bb6 {[%clk 0:02:56.2]} 8. d4
{[%clk 0:02:56.5]} 8... O-O {[%clk 0:02:52.5]} 9. Bg5 {[%clk 0:02:48.9]} 9... h6
{[%clk 0:02:50.1]} 10. dxe5 {[%clk 0:02:47.6]} 10... hxg5 {[%clk 0:02:49.1]} 11.
exf6 {[%clk 0:02:47.9]} 11... Qxf6 {[%clk 0:02:48.1]} 12. Nd2 {[%clk 0:02:43.5]}
12... d6 {[%clk 0:02:43.7]} 13. Qf3 {[%clk 0:02:41.6]} 13... Qh6 {[%clk
0:02:31.1]} 14. Nc4 {[%clk 0:02:33.3]} 14... Be6 {[%clk 0:02:07.9]} 15. Ne3
{[%clk 0:02:30.9]} 15... g6 {[%clk 0:01:57.2]} 16. Nd5 {[%clk 0:02:14.9]} 16...
Bxd5 {[%clk 0:01:54]} 17. exd5 {[%clk 0:02:14.9]} 17... a6 {[%clk 0:01:43.4]}
18. Bc4 {[%clk 0:02:10.6]} 18... Rae8 {[%clk 0:01:40.7]} 19. Rae1 {[%clk
0:02:09.6]} 19... Qh4 {[%clk 0:01:40.7]} 20. Bb3 {[%clk 0:02:02.5]} 20... Kg7
{[%clk 0:01:36.8]} 21. g3 {[%clk 0:01:58]} 21... Qh3 {[%clk 0:01:33.3]} 22. Qg2
{[%clk 0:01:54.7]} 22... Qf5 {[%clk 0:01:29.1]} 23. h3 {[%clk 0:01:42.5]} 23...
Re5 {[%clk 0:01:27.4]} 24. g4 {[%clk 0:01:33]} 24... Qf4 {[%clk 0:01:26]} 25.
Rxe5 {[%clk 0:01:27.8]} 25... Qxe5 {[%clk 0:01:26.5]} 26. Qf3 {[%clk 0:01:26.9]}
26... f5 {[%clk 0:01:13]} 27. Kg2 {[%clk 0:01:18.5]} 27... fxg4 {[%clk
0:01:01.2]} 28. Qxg4 {[%clk 0:01:18.1]} 28... Rf4 {[%clk 0:01:01.3]} 29. Qd7+
{[%clk 0:01:12.2]} 29... Kh6 {[%clk 0:01:01]} 30. Qc8 {[%clk 0:01:03.5]} 30...
Kg7 {[%clk 0:00:55.9]} 31. Qd7+ {[%clk 0:01:02.8]} 31... Kh6 {[%clk 0:00:55.5]}
32. Qc8 {[%clk 0:01:02.5]} 32... Kg7 {[%clk 0:00:55.8]} 33. Qd7+ {[%clk
0:01:02.5]} 1/2-1/2

[Event "Early-Titled-Tuesday-Blitz-March-12-2024"]
[Site "Chess.com"]
[Date "2024.03.12"]
[Round "3"]
[White "Danny_Billiards"]
[Black "DenLaz"]
[Result "0-1"]
[WhiteElo "2793"]
[BlackElo "3043"]
[TimeControl "180+1"]
[EndTime "8:26:16 PDT"]
[Termination "DenLaz won by resignation"]

1. d4 {[%clk 0:03:00.9]} 1... f5 {[%clk 0:02:59.3]} 2. g3 {[%clk 0:03:00]} 2...
Nf6 {[%clk 0:02:57.5]} 3. Bg2 {[%clk 0:03:00.6]} 3... g6 {[%clk 0:02:57.8]} 4.
Nd2 {[%clk 0:03:00.5]} 4... Bg7 {[%clk 0:02:58.4]} 5. e4 {[%clk 0:03:00.8]} 5...
fxe4 {[%clk 0:02:57.2]} 6. Nxe4 {[%clk 0:03:01.7]} 6... Nxe4 {[%clk 0:02:57.8]}
7. Bxe4 {[%clk 0:03:02.6]} 7... d5 {[%clk 0:02:58.4]} 8. Bg2 {[%clk 0:03:02.6]}
8... Nc6 {[%clk 0:02:58.8]} 9. Nf3 {[%clk 0:02:59.9]} 9... Bg4 {[%clk 0:02:57]}
10. c3 {[%clk 0:02:59.3]} 10... Qd7 {[%clk 0:02:57]} 11. h3 {[%clk 0:02:59.5]}
11... Bxf3 {[%clk 0:02:56.3]} 12. Bxf3 {[%clk 0:02:54.9]} 12... O-O-O {[%clk
0:02:56.2]} 13. Qe2 {[%clk 0:02:49.1]} 13... Kb8 {[%clk 0:02:55.9]} 14. Bg4
{[%clk 0:02:47.3]} 14... Qe8 {[%clk 0:02:53.8]} 15. Be6 {[%clk 0:02:42.1]} 15...
Bxd4 {[%clk 0:02:41.9]} 16. Bf4 {[%clk 0:02:10.3]} 16... Bf6 {[%clk 0:02:32.7]}
17. h4 {[%clk 0:02:06.2]} 17... d4 {[%clk 0:02:32.2]} 18. O-O {[%clk 0:02:06.2]}
18... h6 {[%clk 0:02:28.5]} 19. cxd4 {[%clk 0:01:38.6]} 19... g5 {[%clk
0:02:20.6]} 20. hxg5 {[%clk 0:01:28.9]} 20... hxg5 {[%clk 0:02:20]} 21. Be3
{[%clk 0:01:29.1]} 21... Bxd4 {[%clk 0:02:16.6]} 22. Bg4 {[%clk 0:01:18.7]}
22... Qg6 {[%clk 0:02:14.3]} 23. Bf3 {[%clk 0:01:17.4]} 23... Bxe3 {[%clk
0:02:09.9]} 24. Qxe3 {[%clk 0:01:16.5]} 24... Nd4 {[%clk 0:02:10.5]} 25. Rfc1
{[%clk 0:01:09.1]} 25... g4 {[%clk 0:01:36.3]} 26. Bg2 {[%clk 0:01:02.7]} 26...
Qh5 {[%clk 0:01:35.2]} 27. Qxe7 {[%clk 0:00:44.9]} 27... Nf3+ {[%clk 0:01:32.7]}
28. Bxf3 {[%clk 0:00:29.8]} 28... gxf3 {[%clk 0:01:33.6]} 29. Qh4 {[%clk
0:00:30.3]} 29... Qxh4 {[%clk 0:01:31.7]} 30. gxh4 {[%clk 0:00:31.2]} 30... Rxh4
{[%clk 0:01:32.2]} 0-1

[Event "Early-Titled-Tuesday-Blitz-March-12-2024"]
[Site "Chess.com"]
[Date "2024.03.12"]
[Round "3"]
[White "RebelJohnny"]
[Black "Grieve72"]
[Result "1-0"]
[WhiteElo "2522"]
[BlackElo "2710"]
[TimeControl "180+1"]
[EndTime "8:26:25 PDT"]
[Termination "RebelJohnny won by resignation"]

1. e4 {[%clk 0:03:00.9]} 1... c5 {[%clk 0:02:59.4]} 2. Nf3 {[%clk 0:03:01.3]}
2... a6 {[%clk 0:02:59.3]} 3. c3 {[%clk 0:03:01.1]} 3... Nf6 {[%clk 0:02:58.8]}
4. e5 {[%clk 0:03:00.3]} 4... Nd5 {[%clk 0:02:59.4]} 5. d4 {[%clk 0:03:00.6]}
5... cxd4 {[%clk 0:03:00.3]} 6. Bc4 {[%clk 0:03:00.6]} 6... e6 {[%clk
0:03:00.6]} 7. Bg5 {[%clk 0:02:36.9]} 7... Qc7 {[%clk 0:02:33.2]} 8. Bxd5 {[%clk
0:02:36.5]} 8... exd5 {[%clk 0:02:34.1]} 9. Qxd4 {[%clk 0:02:32.8]} 9... d6
{[%clk 0:02:29.9]} 10. exd6 {[%clk 0:02:16.9]} 10... Qxd6 {[%clk 0:02:24.4]} 11.
O-O {[%clk 0:02:15.6]} 11... Nc6 {[%clk 0:02:24.6]} 12. Re1+ {[%clk 0:02:07.2]}
12... Be6 {[%clk 0:02:24.6]} 13. Qd2 {[%clk 0:02:05]} 13... Be7 {[%clk
0:02:17.6]} 14. Na3 {[%clk 0:01:56.8]} 14... O-O {[%clk 0:02:12]} 15. Bxe7
{[%clk 0:01:53.8]} 15... Qxe7 {[%clk 0:02:06.4]} 16. Nc2 {[%clk 0:01:51.2]}
16... Rad8 {[%clk 0:02:02]} 17. Ncd4 {[%clk 0:01:51]} 17... Qd6 {[%clk
0:01:53.5]} 18. Qg5 {[%clk 0:01:44.2]} 18... Na5 {[%clk 0:01:42.8]} 19. Nh4
{[%clk 0:01:28.1]} 19... h6 {[%clk 0:01:28.7]} 20. Qh5 {[%clk 0:01:09.3]} 20...
Nc4 {[%clk 0:01:25.3]} 21. b3 {[%clk 0:01:07.2]} 21... Nb6 {[%clk 0:01:19.7]}
22. Re3 {[%clk 0:01:02.6]} 22... Bc8 {[%clk 0:00:35.5]} 23. Rae1 {[%clk
0:00:54.3]} 23... Qc6 {[%clk 0:00:33.9]} 24. Nxc6 {[%clk 0:00:53.4]} 1-0

[Event "Early-Titled-Tuesday-Blitz-March-12-2024"]
[Site "Chess.com"]
[Date "2024.03.12"]
[Round "3"]
[White "KhazhatulyAlikhan"]
[Black "Sattarov_Bobur"]
[Result "0-1"]
[WhiteElo "2445"]
[BlackElo "2806"]
[TimeControl "180+1"]
[EndTime "8:26:33 PDT"]
[Termination "Sattarov_Bobur won on time"]

1. e4 {[%clk 0:03:00.9]} 1... e5 {[%clk 0:02:58]} 2. Nf3 {[%clk 0:02:55.1]} 2...
Nc6 {[%clk 0:02:55.6]} 3. Nc3 {[%clk 0:02:54.3]} 3... Nf6 {[%clk 0:02:54.6]} 4.
Bb5 {[%clk 0:02:54.4]} 4... Bd6 {[%clk 0:02:53]} 5. O-O {[%clk 0:02:43.1]} 5...
O-O {[%clk 0:02:47]} 6. h3 {[%clk 0:02:36.7]} 6... Nd4 {[%clk 0:02:46]} 7. Bc4
{[%clk 0:02:35]} 7... c6 {[%clk 0:02:43.8]} 8. d3 {[%clk 0:02:31.4]} 8... h6
{[%clk 0:02:40.1]} 9. Be3 {[%clk 0:02:27.6]} 9... Nxf3+ {[%clk 0:02:35.1]} 10.
Qxf3 {[%clk 0:02:28.5]} 10... Bc7 {[%clk 0:02:33.8]} 11. Bb3 {[%clk 0:02:22.3]}
11... b5 {[%clk 0:02:28.3]} 12. a3 {[%clk 0:02:20.6]} 12... d6 {[%clk
0:02:22.9]} 13. Qg3 {[%clk 0:01:58.2]} 13... Kh7 {[%clk 0:02:19]} 14. Qh4 {[%clk
0:01:29]} 14... Ng8 {[%clk 0:02:06.5]} 15. Qxd8 {[%clk 0:01:22.5]} 15... Bxd8
{[%clk 0:02:07.4]} 16. f4 {[%clk 0:01:23]} 16... Bf6 {[%clk 0:02:07]} 17. f5
{[%clk 0:01:00.1]} 17... Bg5 {[%clk 0:02:02.2]} 18. Bxg5 {[%clk 0:00:44.8]}
18... hxg5 {[%clk 0:02:03.1]} 19. Kf2 {[%clk 0:00:38.8]} 19... Bb7 {[%clk
0:02:00.2]} 20. g4 {[%clk 0:00:27.5]} 20... Nf6 {[%clk 0:01:56]} 21. Kg3 {[%clk
0:00:27]} 21... a6 {[%clk 0:01:52.5]} 22. Rh1 {[%clk 0:00:24.4]} 22... g6 {[%clk
0:01:51]} 23. h4 {[%clk 0:00:22.7]} 23... gxh4+ {[%clk 0:01:49.1]} 24. Rxh4+
{[%clk 0:00:23.6]} 24... Kg7 {[%clk 0:01:49.4]} 25. Rah1 {[%clk 0:00:18.5]}
25... g5 {[%clk 0:01:45.3]} 26. Rh6 {[%clk 0:00:12.6]} 26... d5 {[%clk
0:01:44.6]} 27. exd5 {[%clk 0:00:08.8]} 27... cxd5 {[%clk 0:01:45.5]} 28. Bxd5
{[%clk 0:00:03.6]} 28... Bxd5 {[%clk 0:01:40.9]} 29. Nxd5 {[%clk 0:00:01.7]}
29... Nxd5 {[%clk 0:01:40.9]} 30. Rh7+ {[%clk 0:00:01.9]} 30... Kf6 {[%clk
0:01:40.8]} 31. R1h6+ {[%clk 0:00:01.5]} 31... Ke7 {[%clk 0:01:41.1]} 32. Rc6
{[%clk 0:00:01.1]} 32... Rfc8 {[%clk 0:01:39.2]} 0-1

[Event "Early-Titled-Tuesday-Blitz-March-12-2024"]
[Site "Chess.com"]
[Date "2024.03.12"]
[Round "3"]
[White "guillembaches"]
[Black "platy3"]
[Result "0-1"]
[WhiteElo "2550"]
[BlackElo "2943"]
[TimeControl "180+1"]
[EndTime "8:26:39 PDT"]
[Termination "platy3 won on time"]

1. d4 {[%clk 0:03:00.9]} 1... Nf6 {[%clk 0:02:54.9]} 2. Nf3 {[%clk 0:03:01.5]}
2... d5 {[%clk 0:02:54.5]} 3. Bg5 {[%clk 0:03:02.1]} 3... c5 {[%clk 0:02:53.5]}
4. e3 {[%clk 0:03:01.8]} 4... Nc6 {[%clk 0:02:52.6]} 5. Nbd2 {[%clk 0:03:00.5]}
5... Qb6 {[%clk 0:02:52.6]} 6. dxc5 {[%clk 0:02:52.6]} 6... Qxb2 {[%clk
0:02:50.2]} 7. Rb1 {[%clk 0:02:52.5]} 7... Qc3 {[%clk 0:02:49.6]} 8. Bb5 {[%clk
0:02:36.9]} 8... Qxc5 {[%clk 0:02:47.3]} 9. c4 {[%clk 0:02:33.3]} 9... e6 {[%clk
0:02:39.6]} 10. O-O {[%clk 0:02:27.4]} 10... Be7 {[%clk 0:02:38.3]} 11. cxd5
{[%clk 0:02:24.4]} 11... Qxd5 {[%clk 0:02:36.5]} 12. e4 {[%clk 0:02:13.5]} 12...
Qd8 {[%clk 0:02:32.6]} 13. e5 {[%clk 0:02:03.6]} 13... Nd7 {[%clk 0:02:28.3]}
14. Bxe7 {[%clk 0:01:58.3]} 14... Qxe7 {[%clk 0:02:27.5]} 15. Ne4 {[%clk
0:01:51.4]} 15... O-O {[%clk 0:02:26.3]} 16. Bxc6 {[%clk 0:01:40.5]} 16... bxc6
{[%clk 0:02:27.2]} 17. Qa4 {[%clk 0:01:37.5]} 17... a5 {[%clk 0:02:10.7]} 18.
Qxc6 {[%clk 0:01:29]} 18... Ba6 {[%clk 0:02:06.4]} 19. Rfd1 {[%clk 0:01:23.5]}
19... Rfd8 {[%clk 0:02:05.6]} 20. Rd6 {[%clk 0:01:06.9]} 20... Be2 {[%clk
0:01:53.5]} 21. Rb7 {[%clk 0:00:43.3]} 21... Bxf3 {[%clk 0:01:53]} 22. Rbxd7
{[%clk 0:00:34.4]} 22... Bxe4 {[%clk 0:01:47.4]} 23. Qxe4 {[%clk 0:00:15.9]}
23... Rac8 {[%clk 0:01:44.2]} 24. Rxd8+ {[%clk 0:00:08.6]} 24... Rxd8 {[%clk
0:01:44.5]} 25. Rxd8+ {[%clk 0:00:08.4]} 25... Qxd8 {[%clk 0:01:45.4]} 26. g3
{[%clk 0:00:08.5]} 26... h6 {[%clk 0:01:43.1]} 27. h4 {[%clk 0:00:08.4]} 27...
g6 {[%clk 0:01:36.7]} 28. Qc6 {[%clk 0:00:05.2]} 28... Kg7 {[%clk 0:01:32.5]}
29. Qb5 {[%clk 0:00:05.1]} 29... Qd2 {[%clk 0:01:30]} 30. Kg2 {[%clk 0:00:04.6]}
30... Qxa2 {[%clk 0:01:29.4]} 31. Qb8 {[%clk 0:00:01.6]} 31... Qd5+ {[%clk
0:01:28.9]} 32. Kh2 {[%clk 0:00:01.2]} 32... a4 {[%clk 0:01:29.8]} 0-1